fUSD/lending_fUSD_20251014
["ID","MTS","AMOUNT","RATE_DAILY","PERIOD"]
[391280071,1760465446436,-500.0,0.00016438,2]
[391280073,1760465446445,-500.0,0.00016438,2]
[391280075,1760465446454,-2513.46,0.00016438,2]
[391280077,1760465446463,-464.11303514,0.00016438,2]
[391280079,1760465446472,-500.0,0.00016438,2]
[391280081,1760465446481,-500.0,0.00016438,2]
[391280083,1760465446490,-760.3,0.00016438,2]
[391280085,1760465446499,-500.0,0.00016438,2]
[391280087,1760465446507,-500.0,0.00016438,2]
[391280089,1760465446517,-1282.55,0.00016438,2]
[391280091,1760465446526,-500.0,0.00016438,2]
[391280093,1760465446535,-1450.9,0.00016438,2]
[391280095,1760465446544,-1356.28,0.00016438,2]
[391280097,1760465446552,-1012.28,0.00016438,2]
[391280099,1760465446561,-500.0,0.00016438,2]
[391280101,1760465446570,-904.65,0.00016438,2]
[391280103,1760465446579,-1006.36,0.00016438,2]
[391280105,1760465446588,-500.0,0.00016438,2]
[391280107,1760465446597,-955.19,0.00016438,2]
[391280109,1760465446606,-500.0,0.00016438,2]
[391280111,1760465446615,-1640.07,0.00016438,2]
[391280113,1760465446624,-763.1,0.00016438,2]
[391280115,1760465446633,-665.82,0.00016438,2]
[391280117,1760465446642,-1947.29,0.00016438,2]
[391280119,1760465446651,-152.096875,0.00016438,2]
[391280121,1760465446660,-500.0,0.00016438,2]
[391280123,1760465446669,-500.0,0.00016438,2]
[391280125,1760465446679,-994.95782565,0.00016438,2]
[391280135,1760465446760,-861.05217435,0.00016438,2]
[391280137,1760465446771,-500.0,0.00016438,2]
[391280139,1760465446780,-500.0,0.00016438,2]
[391280141,1760465446790,-1395.56,0.00016438,2]
[391280143,1760465446799,-500.0,0.00016438,2]
[391280146,1760465446809,-2049.19,0.00016438,2]
[391280148,1760465446819,-1257.96,0.00016438,2]
[391280150,1760465446830,-151.0,0.00016438,2]
[391280152,1760465446839,-1484.78,0.00016438,2]
[391280154,1760465446848,-572.28,0.00016438,2]
[391280156,1760465446858,-1794.56,0.00016438,2]
[391280158,1760465446867,-869.58,0.00016438,2]
[391280160,1760465446877,-500.0,0.00016438,2]
[391280162,1760465446886,-521.23,0.00016438,2]
[391280164,1760465446896,-500.0,0.00016438,2]
[391280166,1760465446906,-687.01,0.00016438,2]
[391280168,1760465446915,-500.0,0.00016438,2]
[391280170,1760465446925,-556.42,0.00016438,2]
[391280172,1760465446935,-500.0,0.00016438,2]
[391280174,1760465446945,-405.20301343,0.00016438,2]
[391280177,1760465446955,-500.0,0.00016438,2]
[391280179,1760465446965,-465.21645353,0.00016438,2]
[391280317,1760465448212,-160.90675455,0.00016438,2]
[391280319,1760465448221,-400.11693975,0.00016438,2]
[391280333,1760465448800,-99.88306025,0.00016438,2]
[391280334,1760465448810,-168.58213975,0.00016438,2]
[391280335,1760465448910,-331.41786025,0.00016438,2]
[391280336,1760465448920,-216.50734875,0.00016438,2]
[391280337,1760465448931,-283.49265125,0.00016438,2]
[391280338,1760465448940,-3029.26,0.00016438,2]
[391280339,1760465448949,-500.0,0.00016438,2]
[391280340,1760465448958,-151.0,0.00016438,2]
[391280341,1760465448967,-897.11,0.00016438,2]
[391280342,1760465448975,-151.0,0.00016438,2]
[391280343,1760465448984,-151.0,0.00016438,2]
[391280344,1760465448993,-897.21,0.00016438,2]
[391280345,1760465449002,-151.0,0.00016438,2]
[391280346,1760465449012,-2471.1,0.00016438,2]
[391280347,1760465449022,-898.55,0.00016438,2]
[391280348,1760465449031,-159.961752,0.00016438,2]
[391280349,1760465449040,-500.0,0.00016438,2]
[391280350,1760465449049,-431.05918667,0.00016438,2]
[391280351,1760465449072,-68.94081333,0.00016438,2]
[391280352,1760465449085,-475.36390069,0.00016438,2]
[391280353,1760465449115,-159.05609931,0.00016438,2]
[391280354,1760465449127,-1627.43,0.00016438,2]
[391280355,1760465449135,-500.0,0.00016438,2]
[391280356,1760465449144,-151.0,0.00016438,2]
[391280357,1760465449154,-1045.3,0.00016438,2]
[391280358,1760465449163,-500.0,0.00016438,2]
[391280359,1760465449173,-500.0,0.00016438,2]
[391280360,1760465449182,-665.45,0.00016438,2]
[391280361,1760465449190,-500.0,0.00016438,2]
[391280362,1760465449200,-500.0,0.00016438,2]
[391280363,1760465449208,-1050.76,0.00016438,2]
[391280364,1760465449217,-500.0,0.00016438,2]
[391280365,1760465449227,-500.0,0.00016438,2]
[391280366,1760465449235,-500.0,0.00016438,2]
[391280367,1760465449244,-571.74,0.00016438,2]
[391280368,1760465449253,-661.69,0.00016438,2]
[391280369,1760465449262,-500.0,0.00016438,2]
[391280370,1760465449273,-551.47,0.00016438,2]
[391280371,1760465449281,-500.0,0.00016438,2]
[391280372,1760465449291,-757.48,0.00016438,2]
[391280373,1760465449300,-500.0,0.00016438,2]
[391280374,1760465449309,-945.57,0.00016438,2]
[391280375,1760465449318,-1593.24,0.00016438,2]
[391280376,1760465449327,-885.14,0.00016438,2]
[391280377,1760465449336,-676.63,0.00016438,2]
[391280378,1760465449344,-508.52,0.00016438,2]
[391280379,1760465449353,-500.0,0.00016438,2]
[391280380,1760465449362,-487.33236875,0.00016438,2]
[391280381,1760465449371,-500.0,0.00016438,2]
[391280382,1760465449380,-500.0,0.00016438,2]
[391280383,1760465449389,-500.0,0.00016438,2]
[391280384,1760465449398,-500.0,0.00016438,2]
[391280385,1760465449407,-500.0,0.00016438,2]
[391280386,1760465449416,-647.68,0.00016438,2]
[391280387,1760465449425,-653.23,0.00016438,2]
[391280388,1760465449433,-1919.81,0.00016438,2]
[391280389,1760465449443,-500.0,0.00016438,2]
[391280390,1760465449451,-500.0,0.00016438,2]
[391280391,1760465449460,-500.0,0.00016438,2]
[391280392,1760465449469,-500.0,0.00016438,2]
[391280393,1760465449477,-500.0,0.00016438,2]
[391280394,1760465449486,-500.0,0.00016438,2]
[391280395,1760465449495,-1390.03,0.00016438,2]
[391280396,1760465449504,-500.0,0.00016438,2]
[391280397,1760465449513,-500.0,0.00016438,2]
[391280398,1760465449523,-590.55,0.00016438,2]
[391280399,1760465449532,-705.63,0.00016438,2]
[391280400,1760465449540,-500.0,0.00016438,2]
[391280401,1760465449549,-771.37,0.00016438,2]
[391280402,1760465449558,-679.82,0.00016438,2]
[391280403,1760465449567,-500.0,0.00016438,2]
[391280404,1760465449576,-500.0,0.00016438,2]
[391280405,1760465449585,-500.0,0.00016438,2]
[391280406,1760465449595,-1773.25,0.00016438,2]
[391280407,1760465449604,-500.0,0.00016438,2]
[391280408,1760465449613,-151.0,0.00016438,2]
[391280409,1760465449622,-151.0,0.00016438,2]
[391280410,1760465449631,-500.0,0.00016438,2]
[391280411,1760465449640,-500.0,0.00016438,2]
[391280412,1760465449650,-500.0,0.00016438,2]
[391280413,1760465449659,-500.0,0.00016438,2]
[391280414,1760465449668,-500.0,0.00016438,2]
[391280415,1760465449676,-500.0,0.00016438,2]
[391280416,1760465449685,-500.0,0.00016438,2]
[391280417,1760465449693,-1971.39,0.00016438,2]
[391280418,1760465449702,-500.0,0.00016438,2]
[391280419,1760465449711,-500.0,0.00016438,2]
[391280420,1760465449720,-1757.29,0.00016438,2]
[391280421,1760465449728,-1022.43,0.00016438,2]
[391280422,1760465449737,-500.0,0.00016438,2]
[391280423,1760465449746,-500.0,0.00016438,2]
[391280424,1760465449756,-500.0,0.00016438,2]
[391280425,1760465449764,-500.0,0.00016438,2]
[391280426,1760465449774,-669.69,0.00016438,2]
[391280427,1760465449783,-1331.13,0.00016438,2]
[391280428,1760465449792,-500.0,0.00016438,2]
[391280429,1760465449801,-500.0,0.00016438,2]
[391280430,1760465449810,-500.0,0.00016438,2]
[391280431,1760465449819,-500.0,0.00016438,2]
[391280432,1760465449828,-1092.06,0.00016438,2]
[391280433,1760465449837,-1613.08,0.00016438,2]
[391280434,1760465449846,-613.48,0.00016438,2]
[391280435,1760465449855,-151.0,0.00016438,2]
[391280436,1760465449865,-151.0,0.00016438,2]
[391280437,1760465449874,-500.0,0.00016438,2]
[391280438,1760465449882,-151.0,0.00016438,2]
[391280439,1760465449891,-500.0,0.00016438,2]
[391280440,1760465449900,-500.0,0.00016438,2]
[391280441,1760465449909,-500.0,0.00016438,2]
[391280442,1760465449919,-526.9820605,0.00016438,2]
[391280443,1760465449927,-500.0,0.00016438,2]
[391280444,1760465449936,-561.26,0.00016438,2]
[391280445,1760465449945,-500.0,0.00016438,2]
[391280446,1760465449954,-1028.99,0.00016438,2]
[391280447,1760465449962,-720.9,0.00016438,2]
[391280448,1760465449971,-500.0,0.00016438,2]
[391280449,1760465449980,-500.0,0.00016438,2]
[391280450,1760465449989,-500.0,0.00016438,2]
[391280451,1760465449998,-500.0,0.00016438,2]
[391280452,1760465450007,-1492.97,0.00016438,2]
[391280453,1760465450015,-757.72,0.00016438,2]
[391280454,1760465450024,-1531.07,0.00016438,2]
[391280455,1760465450033,-500.0,0.00016438,2]
[391280456,1760465450042,-500.0,0.00016438,2]
[391280457,1760465450051,-2065.72,0.00016438,2]
[391280458,1760465450059,-500.0,0.00016438,2]
[391280459,1760465450068,-972.47,0.00016438,2]
[391280460,1760465450077,-500.0,0.00016438,2]
[391280461,1760465450091,-656.28,0.00016438,2]
[391280462,1760465450099,-2032.6,0.00016438,2]
[391280463,1760465450108,-1193.53,0.00016438,2]
[391280464,1760465450119,-715.94,0.00016438,2]
[391280465,1760465450128,-500.0,0.00016438,2]
[391280466,1760465450136,-610.03,0.00016438,2]
[391280467,1760465450146,-500.0,0.00016438,2]
[391280468,1760465450157,-625.0,0.00016438,2]
[391280469,1760465450167,-500.0,0.00016438,2]
[391280470,1760465450176,-548.85,0.00016438,2]
[391280471,1760465450185,-405.65861205,0.00016438,2]
[391280472,1760465450195,-632.56,0.00016438,2]
[391280473,1760465450205,-1108.08,0.00016438,2]
[391280474,1760465450215,-1198.2,0.00016438,2]
[391280475,1760465450223,-1130.64,0.00016438,2]
[391280476,1760465450232,-500.0,0.00016438,2]
[391280477,1760465450241,-500.0,0.00016438,2]
[391280478,1760465450250,-500.0,0.00016438,2]
[391280479,1760465450259,-657.3,0.00016438,2]
[391280480,1760465450267,-500.0,0.00016438,2]
[391280481,1760465450277,-665.86,0.00016438,2]
[391280482,1760465450286,-500.0,0.00016438,2]
[391280483,1760465450295,-200.0,0.00016438,2]
[391280484,1760465450305,-500.0,0.00016438,2]
[391280485,1760465450315,-1097.13,0.00016438,2]
[391280486,1760465450324,-1647.77,0.00016438,2]
[391280487,1760465450334,-500.0,0.00016438,2]
[391280488,1760465450343,-500.0,0.00016438,2]
[391280489,1760465450352,-1338.28,0.00016438,2]
[391280490,1760465450361,-786.46,0.00016438,2]
[391280491,1760465450371,-500.0,0.00016438,2]
[391280492,1760465450380,-500.0,0.00016438,2]
[391280493,1760465450389,-299.72002668,0.00016438,2]
[391280494,1760465450398,-813.02,0.00016438,2]
[391280495,1760465450408,-500.0,0.00016438,2]
[391280496,1760465450417,-500.0,0.00016438,2]
[391280497,1760465450426,-500.0,0.00016438,2]
[391280498,1760465450447,-500.0,0.00016438,2]
[391280499,1760465450456,-500.0,0.00016438,2]
[391280500,1760465450465,-791.21,0.00016438,2]
[391280501,1760465450474,-500.0,0.00016438,2]
[391280502,1760465450483,-500.0,0.00016438,2]
[391280503,1760465450492,-151.0,0.00016438,2]
[391280504,1760465450501,-1271.32,0.00016438,2]
[391280505,1760465450510,-688.2,0.00016438,2]
[391280506,1760465450520,-500.0,0.00016438,2]
[391280507,1760465450530,-516.46,0.00016438,2]
[391280508,1760465450539,-1075.11,0.00016438,2]
[391280509,1760465450549,-500.0,0.00016438,2]
[391280510,1760465450558,-500.0,0.00016438,2]
[391280511,1760465450568,-954.03,0.00016438,2]
[391280512,1760465450577,-266.24,0.00016438,2]
[391280513,1760465450586,-2029.48,0.00016438,2]
[391280514,1760465450595,-850.32,0.00016438,2]
[391280515,1760465450604,-2052.64,0.00016438,2]
[391280516,1760465450613,-500.0,0.00016438,2]
[391280517,1760465450622,-2125.2,0.00016438,2]
[391280518,1760465450631,-1087.01,0.00016438,2]
[391280519,1760465450640,-3926.35,0.00016438,2]
[391280520,1760465450649,-500.0,0.00016438,2]
[391280521,1760465450658,-500.0,0.00016438,2]
[391280522,1760465450667,-500.0,0.00016438,2]
[391280523,1760465450675,-624.37,0.00016438,2]
[391280524,1760465450684,-500.0,0.00016438,2]
[391280525,1760465450693,-500.0,0.00016438,2]
[391280526,1760465450702,-500.0,0.00016438,2]
[391280527,1760465450711,-500.0,0.00016438,2]
[391280528,1760465450720,-151.0,0.00016438,2]
[391280529,1760465450728,-151.0,0.00016438,2]
[391280530,1760465450737,-577.43,0.00016438,2]
[391280531,1760465450746,-500.0,0.00016438,2]
[391280532,1760465450755,-500.0,0.00016438,2]
[391280533,1760465450764,-746.2,0.00016438,2]
[391280534,1760465450775,-562.73,0.00016438,2]
[391280535,1760465450783,-500.0,0.00016438,2]
[391280536,1760465450797,-3185.11,0.00016438,2]
[391280537,1760465450806,-1822.59,0.00016438,2]
[391280538,1760465450816,-500.0,0.00016438,2]
[391280539,1760465450825,-539.33,0.00016438,2]
[391280540,1760465450834,-500.0,0.00016438,2]
[391280541,1760465450844,-500.0,0.00016438,2]
[391280542,1760465450853,-500.0,0.00016438,2]
[391280543,1760465450862,-500.0,0.00016438,2]
[391280544,1760465450871,-1187.34,0.00016438,2]
[391280545,1760465450880,-500.0,0.00016438,2]
[391280546,1760465450889,-500.0,0.00016438,2]
[391280547,1760465450898,-151.0,0.00016438,2]
[391280548,1760465450907,-500.0,0.00016438,2]
[391280549,1760465450916,-500.0,0.00016438,2]
[391280550,1760465450925,-500.0,0.00016438,2]
[391280551,1760465450935,-1124.04,0.00016438,2]
[391280552,1760465450944,-518.65084371,0.00016438,2]
[391280553,1760465450953,-1778.85,0.00016438,2]
[391280554,1760465450962,-500.0,0.00016438,2]
[391280555,1760465450971,-500.0,0.00016438,2]
[391280556,1760465450979,-500.0,0.00016438,2]
[391280557,1760465450989,-500.0,0.00016438,2]
[391280558,1760465450998,-1972.19,0.00016438,2]
[391280559,1760465451007,-151.0,0.00016438,2]
[391280560,1760465451017,-151.0,0.00016438,2]
[391280561,1760465451027,-181.066806,0.00016438,2]
[391280562,1760465451036,-1548.25,0.00016438,2]
[391280563,1760465451046,-422.65,0.00016438,2]
[391280564,1760465451055,-500.0,0.00016438,2]
[391280565,1760465451064,-500.0,0.00016438,2]
[391280566,1760465451073,-500.0,0.00016438,2]
[391280567,1760465451087,-500.0,0.00016438,2]
[391280568,1760465451096,-500.0,0.00016438,2]
[391280569,1760465451106,-500.0,0.00016438,2]
[391280570,1760465451115,-1634.55808,0.00016438,2]
[391280571,1760465451126,-500.0,0.00016438,2]
[391280572,1760465451135,-661.34,0.00016438,2]
[391280573,1760465451144,-500.0,0.00016438,2]
[391280574,1760465451154,-1271.95,0.00016438,2]
[391280575,1760465451163,-500.0,0.00016438,2]
[391280576,1760465451580,-500.0,0.00016438,2]
[391280577,1760465451589,-500.0,0.00016438,2]
[391280578,1760465451598,-500.0,0.00016438,2]
[391280579,1760465451607,-500.0,0.00016438,2]
[391280580,1760465451615,-500.0,0.00016438,2]
[391280581,1760465451624,-500.0,0.00016438,2]
[391280582,1760465451635,-500.0,0.00016438,2]
[391280583,1760465451644,-500.0,0.00016438,2]
[391280584,1760465451653,-709.81,0.00016438,2]
[391280585,1760465451662,-3264.43,0.00016438,2]
[391280586,1760465451670,-500.0,0.00016438,2]
[391280587,1760465451679,-500.0,0.00016438,2]
[391280588,1760465451688,-305.68117723,0.00016438,2]
[391280589,1760465451697,-500.0,0.00016438,2]
[391280590,1760465451707,-1417.96,0.00016438,2]
[391280591,1760465451716,-1538.95,0.00016438,2]
[391280592,1760465451724,-2328.4,0.00016438,2]
[391280593,1760465451733,-500.0,0.00016438,2]
[391280594,1760465451742,-624.06,0.00016438,2]
[391280595,1760465451751,-397.75,0.00016438,2]
[391280596,1760465451760,-500.0,0.00016438,2]
[391280597,1760465451770,-500.0,0.00016438,2]
[391280598,1760465451779,-500.0,0.00016438,2]
[391280599,1760465451788,-500.0,0.00016438,2]
[391280600,1760465451797,-554.79090715,0.00016438,2]
[391280601,1760465451806,-845.63,0.00016438,2]
[391280602,1760465451815,-963.47,0.00016438,2]
[391280603,1760465451827,-500.0,0.00016438,2]
[391280604,1760465451836,-500.0,0.00016438,2]
[391280605,1760465451845,-500.0,0.00016438,2]
[391280606,1760465451853,-4687.38,0.00016438,2]
[391280607,1760465451863,-635.91,0.00016438,2]
[391280608,1760465451871,-2483.89,0.00016438,2]
[391280609,1760465451880,-500.0,0.00016438,2]
[391280610,1760465451889,-500.0,0.00016438,2]
[391280611,1760465451899,-952.07,0.00016438,2]
[391280612,1760465451907,-500.0,0.00016438,2]
[391280613,1760465451916,-500.0,0.00016438,2]
[391280614,1760465451925,-151.0,0.00016438,2]
[391280615,1760465451934,-151.0,0.00016438,2]
[391280616,1760465451944,-151.0,0.00016438,2]
[391280617,1760465451953,-605.13,0.00016438,2]
[391280618,1760465451962,-2516.6,0.00016438,2]
[391280619,1760465451972,-500.0,0.00016438,2]
[391280620,1760465451981,-500.0,0.00016438,2]
[391280621,1760465451990,-501.76985724,0.00016438,2]
[391280622,1760465451999,-500.0,0.00016438,2]
[391280623,1760465452008,-500.0,0.00016438,2]
[391280624,1760465452018,-500.0,0.00016438,2]
[391280625,1760465452027,-1466.28,0.00016438,2]
[391280626,1760465452035,-500.0,0.00016438,2]
[391280627,1760465452045,-3196.45,0.00016438,2]
[391280628,1760465452054,-500.0,0.00016438,2]
[391280629,1760465452063,-4026.0,0.00016438,2]
[391280630,1760465452072,-1260.21,0.00016438,2]
[391280631,1760465452082,-500.0,0.00016438,2]
[391280632,1760465452092,-220.781206,0.00016438,2]
[391280633,1760465452101,-1649.11,0.00016438,2]
[391280634,1760465452110,-500.0,0.00016438,2]
[391280635,1760465452119,-151.0,0.00016438,2]
[391280636,1760465452129,-151.0,0.00016438,2]
[391280637,1760465452139,-500.0,0.00016438,2]
[391280638,1760465452148,-584.99,0.00016438,2]
[391280639,1760465452160,-500.0,0.00016438,2]
[391280640,1760465452169,-500.0,0.00016438,2]
[391280641,1760465452179,-500.0,0.00016438,2]
[391280642,1760465452188,-500.0,0.00016438,2]
[391280643,1760465452199,-500.0,0.00016438,2]
[391280644,1760465452208,-500.0,0.00016438,2]
[391280645,1760465452218,-500.0,0.00016438,2]
[391280646,1760465452238,-3017.16,0.00016438,2]
[391280647,1760465452248,-155.888549,0.00016438,2]
[391280648,1760465452258,-151.0,0.00016438,2]
[391280649,1760465452268,-1705.02,0.00016438,2]
[391280650,1760465452277,-151.0,0.00016438,2]
[391280651,1760465452287,-151.0,0.00016438,2]
[391280652,1760465452296,-151.0,0.00016438,2]
[391280653,1760465452306,-151.0,0.00016438,2]
[391280654,1760465452315,-151.0,0.00016438,2]
[391280655,1760465452325,-151.0,0.00016438,2]
[391280656,1760465452334,-151.0,0.00016438,2]
[391280657,1760465452344,-151.0,0.00016438,2]
[391280658,1760465452353,-777.36,0.00016438,2]
[391280659,1760465452363,-500.0,0.00016438,2]
[391280660,1760465452372,-500.0,0.00016438,2]
[391280661,1760465452382,-151.0,0.00016438,2]
[391280662,1760465452391,-151.0,0.00016438,2]
[391280663,1760465452401,-151.0,0.00016438,2]
[391280664,1760465452410,-500.0,0.00016438,2]
[391280665,1760465452420,-500.0,0.00016438,2]
[391280666,1760465452429,-151.205311,0.00016438,2]
[391280667,1760465452439,-151.0,0.00016438,2]
[391280668,1760465452449,-768.7,0.00016438,2]
[391280669,1760465452458,-151.0,0.00016438,2]
[391280670,1760465452468,-172.372416,0.00016438,2]
[391280671,1760465452478,-151.0,0.00016438,2]
[391280672,1760465452487,-151.0,0.00016438,2]
[391280673,1760465452496,-151.0,0.00016438,2]
[391280674,1760465452505,-1242.32,0.00016438,2]
[391280675,1760465452515,-500.0,0.00016438,2]
[391280676,1760465452525,-1931.59,0.00016438,2]
[391280677,1760465452534,-1258.54,0.00016438,2]
[391280678,1760465452543,-500.0,0.00016438,2]
[391280679,1760465452553,-3073.97,0.00016438,2]
[391280680,1760465452562,-955.52,0.00016438,2]
[391280681,1760465452571,-500.0,0.00016438,2]
[391280682,1760465452580,-791.4,0.00016438,2]
[391280683,1760465452590,-678.26,0.00016438,2]
[391280684,1760465452599,-500.0,0.00016438,2]
[391280685,1760465452608,-500.0,0.00016438,2]
[391280686,1760465452617,-532.0,0.00016438,2]
[391280687,1760465452627,-734.44,0.00016438,2]
[391280688,1760465452636,-500.0,0.00016438,2]
[391280689,1760465452645,-1468.75,0.00016438,2]
[391280690,1760465452654,-3240.08,0.00016438,2]
[391280691,1760465452663,-2403.88,0.00016438,2]
[391280692,1760465452672,-1586.61,0.00016438,2]
[391280693,1760465452681,-1329.99,0.00016438,2]
[391280694,1760465452690,-500.0,0.00016438,2]
[391280695,1760465452699,-500.0,0.00016438,2]
[391280696,1760465452708,-500.0,0.00016438,2]
[391280697,1760465452717,-1093.07,0.00016438,2]
[391280698,1760465452726,-500.0,0.00016438,2]
[391280699,1760465452735,-500.0,0.00016438,2]
[391280700,1760465452744,-1345.79,0.00016438,2]
[391280701,1760465452753,-1567.14,0.00016438,2]
[391280702,1760465452762,-500.0,0.00016438,2]
[391280703,1760465452776,-500.0,0.00016438,2]
[391280704,1760465452786,-500.0,0.00016438,2]
[391280705,1760465452795,-640.61,0.00016438,2]
[391280706,1760465452804,-555.66,0.00016438,2]
[391280707,1760465452814,-151.0,0.00016438,2]
[391280708,1760465452823,-1034.11,0.00016438,2]
[391280709,1760465452833,-151.0,0.00016438,2]
[391280710,1760465452843,-151.0,0.00016438,2]
[391280711,1760465452852,-500.0,0.00016438,2]
[391280712,1760465452862,-564.84,0.00016438,2]
[391280713,1760465452871,-718.23,0.00016438,2]
[391280714,1760465452880,-636.51,0.00016438,2]
[391280715,1760465452889,-500.0,0.00016438,2]
[391280716,1760465452899,-1093.44,0.00016438,2]
[391280717,1760465452908,-500.0,0.00016438,2]
[391280718,1760465452917,-500.0,0.00016438,2]
[391280719,1760465452927,-500.0,0.00016438,2]
[391280720,1760465452936,-500.0,0.00016438,2]
[391280721,1760465452945,-500.0,0.00016438,2]
[391280722,1760465452955,-530.87,0.00016438,2]
[391280723,1760465452964,-529.25,0.00016438,2]
[391280724,1760465452973,-500.0,0.00016438,2]
[391280725,1760465452982,-500.0,0.00016438,2]
[391280726,1760465452991,-500.0,0.00016438,2]
[391280727,1760465453001,-1199.12,0.00016438,2]
[391280728,1760465453010,-767.9,0.00016438,2]
[391280729,1760465453039,-1823.93,0.00016438,2]
[391280730,1760465453063,-3208.69,0.00016438,2]
[391280731,1760465453084,-763.81,0.00016438,2]
[391280732,1760465453105,-500.0,0.00016438,2]
[391280733,1760465453128,-151.0,0.00016438,2]
[391280734,1760465453150,-151.0,0.00016438,2]
[391280735,1760465453173,-151.0,0.00016438,2]
[391280736,1760465453194,-500.0,0.00016438,2]
[391280737,1760465453214,-500.0,0.00016438,2]
[391280738,1760465453235,-1991.87,0.00016438,2]
[391280739,1760465453260,-500.0,0.00016438,2]
[391280740,1760465453290,-9148.59,0.00016438,2]
[391280741,1760465453307,-578.84,0.00016438,2]
[391280742,1760465453328,-500.0,0.00016438,2]
[391280743,1760465453343,-577.59,0.00016438,2]
[391280744,1760465453367,-500.0,0.00016438,2]
[391280745,1760465453381,-2093.09,0.00016438,2]
[391280746,1760465453399,-151.0,0.00016438,2]
[391280747,1760465453421,-500.0,0.00016438,2]
[391280748,1760465453442,-151.0,0.00016438,2]
[391280749,1760465453465,-500.0,0.00016438,2]
[391280750,1760465453520,-151.0,0.00016438,2]
[391280751,1760465453542,-667.18,0.00016438,2]
[391280752,1760465453564,-527.2921551,0.00016438,2]
[391280753,1760465453585,-500.0,0.00016438,2]
[391280754,1760465453605,-2124.88,0.00016438,2]
[391280755,1760465453625,-731.74,0.00016438,2]
[391280756,1760465453645,-500.0,0.00016438,2]
[391280757,1760465453666,-151.0,0.00016438,2]
[391280758,1760465453685,-500.0,0.00016438,2]
[391280759,1760465453704,-151.0,0.00016438,2]
[391280760,1760465453723,-761.86,0.00016438,2]
[391280761,1760465453740,-151.0,0.00016438,2]
[391280762,1760465453760,-1110.03,0.00016438,2]
[391280763,1760465453781,-151.0,0.00016438,2]
[391280764,1760465453799,-528.16,0.00016438,2]
[391280765,1760465453821,-151.0,0.00016438,2]
[391280766,1760465453838,-750.55,0.00016438,2]
[391280767,1760465453857,-1937.42,0.00016438,2]
[391280768,1760465453874,-500.0,0.00016438,2]
[391280769,1760465453890,-500.0,0.00016438,2]
[391280770,1760465453906,-500.0,0.00016438,2]
[391280771,1760465453923,-2008.91,0.00016438,2]
[391280772,1760465453940,-750.3,0.00016438,2]
[391280773,1760465453956,-3478.22,0.00016438,2]
[391280774,1760465453973,-500.0,0.00016438,2]
[391280775,1760465453990,-500.0,0.00016438,2]
[391280776,1760465454006,-151.0,0.00016438,2]
[391280777,1760465454022,-500.0,0.00016438,2]
[391280778,1760465454039,-500.0,0.00016438,2]
[391280779,1760465454056,-679.59,0.00016438,2]
[391280780,1760465454072,-151.0,0.00016438,2]